bitfinex/quotes_BTCUSD_20251124
["timestamp","ask_amount","ask_price","bid_price","bid_amount"]
[1764027925816,2.42398543,88576.0,88575.0,0.0001028]
[1764027926017,2.40853572,88576.0,88575.0,0.0001028]
[1764027926417,2.45853572,88576.0,88575.0,0.0001028]
[1764027926616,2.40653572,88576.0,88575.0,0.0001028]
[1764027926835,2.45653572,88576.0,88575.0,0.0001028]
[1764027927043,2.45853572,88576.0,88575.0,0.0001028]
[1764027927246,2.45753572,88576.0,88575.0,0.0001028]
[1764027927640,2.54325079,88576.0,88575.0,0.0001028]
[1764027928641,2.49325079,88576.0,88575.0,0.0001028]
[1764027928844,2.54225079,88576.0,88575.0,0.0001028]
[1764027929165,2.49325079,88576.0,88575.0,0.0001028]
[1764027929366,2.54325079,88576.0,88575.0,0.0001028]
[1764027929915,2.6584721,88576.0,88575.0,0.0001028]
[1764027930135,2.53772247,88563.0,88562.0,0.00118045]
[1764027930329,2.5944958,88563.0,88562.0,0.00118045]
[1764027930558,2.6170558,88563.0,88562.0,0.00118045]
[1764027931155,2.62754636,88563.0,88562.0,0.00118045]
[1764027931778,2.62854636,88563.0,88562.0,0.00118045]
[1764027931954,2.57854636,88563.0,88562.0,0.00118045]
[1764027932156,2.62954636,88563.0,88562.0,0.00118045]
[1764027932607,2.62854636,88563.0,88562.0,0.00118045]
[1764027932812,2.62954636,88563.0,88562.0,0.00118045]
[1764027933371,2.62854636,88563.0,88562.0,0.00118045]
[1764027933574,2.62954636,88563.0,88562.0,0.00118045]
[1764027935155,2.57954636,88563.0,88562.0,0.00118045]
[1764027935302,2.60371456,88563.0,88562.0,0.00118045]
[1764027935704,2.65371456,88563.0,88562.0,0.00118045]
[1764027936249,2.82018636,88563.0,88562.0,0.00118045]
[1764027936393,2.82734636,88563.0,88562.0,0.00118045]
[1764027936599,2.87734636,88563.0,88562.0,0.00118045]
[1764027936804,2.82734636,88563.0,88562.0,0.00118045]
[1764027937007,2.87734636,88563.0,88562.0,0.00118045]
[1764027938428,2.82734636,88563.0,88562.0,0.00118045]
[1764027938632,2.87734636,88563.0,88562.0,0.00118045]
[1764027940058,2.82734636,88563.0,88562.0,0.00118045]
[1764027940424,2.87734636,88563.0,88562.0,0.00118045]
[1764027940633,2.82734636,88563.0,88562.0,0.00118045]
[1764027940849,2.82018636,88563.0,88562.0,0.00118045]
[1764027940977,2.50653281,88563.0,88562.0,0.00118045]
[1764027941317,2.49937281,88563.0,88562.0,0.00118045]
[1764027941525,1.95770487,88563.0,88562.0,0.00118045]
[1764027941721,2.27970487,88563.0,88562.0,0.00118045]
[1764027941880,2.27870487,88563.0,88562.0,0.00118045]
[1764027943088,2.25053528,88563.0,88562.0,0.00118045]
[1764027943293,2.23513528,88563.0,88562.0,0.00118045]
[1764027943915,2.46096322,88563.0,88562.0,0.00118045]
[1764027945115,2.48198718,88563.0,88562.0,0.00118045]
[1764027946560,2.25615924,88563.0,88562.0,0.00118045]
[1764027947180,2.25616535,88563.0,88562.0,0.00118045]
[1764027947799,2.23513528,88563.0,88562.0,0.00118045]
[1764027948905,2.27903762,88563.0,88562.0,0.00118045]
[1764027949524,2.27187762,88563.0,88562.0,0.00118045]
[1764027949699,2.27903762,88563.0,88562.0,0.00118045]
[1764027950434,2.27904414,88563.0,88562.0,0.00118045]
[1764027957373,2.32904414,88563.0,88562.0,0.00118045]
[1764027958011,2.27904414,88563.0,88562.0,0.00118045]
[1764027959553,2.25800528,88563.0,88562.0,0.00118045]
[1764027963415,0.01129305,88550.0,88533.0,0.09485144]
[1764027963591,0.64112482,88550.0,88533.0,0.09485144]
[1764027963796,0.323,88549.0,88534.0,0.02259019]
[1764027964196,0.01129356,88546.0,88534.0,0.02259019]
[1764027964602,0.33429318,88549.0,88534.0,0.02259019]
[1764027964603,0.56015854,88549.0,88534.0,0.02259019]
[1764027964954,0.33429318,88549.0,88533.0,0.001]
[1764027965092,0.323,88549.0,88534.0,0.01129509]
[1764027965632,0.01129382,88544.0,88533.0,0.001]
[1764027965830,0.01129369,88545.0,88533.0,0.02359044]
[1764027966130,0.01129382,88544.0,88533.0,0.02259044]
[1764027966329,0.01129382,88544.0,88530.0,0.14090102]
[1764027966547,0.01129369,88545.0,88530.0,0.14090102]
[1764027966694,0.23717482,88543.0,88530.0,0.14090102]
[1764027966897,0.60724197,88540.0,88534.0,0.001]
[1764027967100,0.60724197,88540.0,88530.0,0.14090102]
[1764027967101,0.01129407,88542.0,88530.0,0.14090102]
[1764027967297,0.60724197,88540.0,88530.0,0.03388349]
[1764027967496,0.01129535,88532.0,88530.0,0.001]
[1764027967703,0.02873,88531.0,88530.0,0.001]
[1764027967918,0.02873,88531.0,88517.0,0.04526201]
[1764027968234,0.60724197,88530.0,88517.0,0.04526201]
[1764027968732,0.60724197,88530.0,88517.0,0.03407199]
[1764027970012,0.60724197,88530.0,88517.0,0.03607199]
[1764027970220,0.60724197,88530.0,88517.0,0.00210724]
[1764027970429,0.01122608,88531.0,88529.0,0.00101278]
[1764027970636,0.01129611,88526.0,88517.0,0.02470176]
[1764027970852,0.61853795,88527.0,88517.0,0.02470176]
[1764027971053,0.61853795,88527.0,88517.0,0.00210724]
[1764027971254,0.01129624,88525.0,88517.0,0.00010724]
[1764027971948,0.84445967,88527.0,88517.0,0.00010724]
[1764027971949,0.01129611,88526.0,88517.0,0.00010724]
[1764027972146,0.01129598,88527.0,88517.0,0.00010724]
[1764027972374,0.60724197,88530.0,88517.0,0.02270176]
[1764027972572,0.00716,88533.0,88529.0,0.001]
[1764027972948,0.00716,88533.0,88523.0,0.02259299]
[1764027973558,0.00716,88533.0,88523.0,0.03388948]
[1764027973984,0.00716,88533.0,88529.0,0.001]
[1764027974156,0.00716,88533.0,88523.0,0.03388948]
[1764027974363,0.01850703,88533.0,88523.0,0.02259299]
[1764027974566,0.01134703,88533.0,88523.0,0.02359299]
[1764027974766,0.00716,88537.0,88523.0,0.02359299]
[1764027975515,0.00716,88537.0,88523.0,0.03488948]
[1764027975714,0.0225898,88536.0,88523.0,0.02359299]
[1764027975847,0.0225898,88536.0,88530.0,0.00098208]
[1764027976047,0.0225898,88536.0,88535.0,0.00082858]
[1764027976504,0.35735002,88536.0,88535.0,0.00082858]
[1764027976645,0.33476022,88536.0,88535.0,0.00082858]
[1764027977444,0.35015022,88536.0,88535.0,0.00082858]
[1764027977686,0.35015022,88536.0,88535.0,0.00182858]
[1764027977888,0.37284022,88536.0,88535.0,0.00182858]
[1764027978201,2.37284022,88536.0,88535.0,0.00182858]
[1764027979953,2.35015022,88536.0,88535.0,0.00182858]
[1764027980817,2.37284022,88536.0,88535.0,0.00182858]
[1764027981299,2.35015022,88536.0,88535.0,0.00182858]
[1764027981511,2.33476022,88536.0,88535.0,0.00182858]
[1764027982415,0.01176022,88536.0,88535.0,0.00182858]
[1764027982777,0.00716,88537.0,88535.0,0.00182858]
[1764027982979,0.00716,88537.0,88535.0,0.001]
[1764027983995,0.00716,88537.0,88525.0,0.02259248]
[1764027984217,0.00716,88537.0,88535.0,0.001]
[1764027986508,0.26092896,88547.0,88535.0,0.001]
[1764027986710,2.0,88540.0,88535.0,0.001]
[1764027986914,2.0,88541.0,88535.0,0.001]
[1764027987228,2.0,88549.0,88535.0,0.001]
[1764027987426,2.0,88545.0,88535.0,0.001]
[1764027987596,2.0,88549.0,88535.0,0.001]
[1764027987799,0.61479159,88550.0,88535.0,0.001]
[1764027987800,2.0,88547.0,88535.0,0.01229496]
[1764027988052,2.01129343,88547.0,88535.0,0.001]
[1764027988342,2.0,88544.0,88535.0,0.001]
[1764027988498,2.0,88542.0,88530.0,0.12960874]
[1764027988893,2.0,88542.0,88535.0,0.001]
[1764027988894,0.033884,88541.0,88535.0,0.001]
[1764027989112,0.01129433,88540.0,88530.0,0.02259121]
[1764027989320,0.01129433,88540.0,88535.0,0.001]
[1764027989728,0.01129445,88539.0,88524.0,0.03396179]
[1764027989927,0.01129458,88538.0,88535.0,0.001]
[1764027990345,0.0112942,88541.0,88524.0,0.03396179]
[1764027990565,0.01129458,88538.0,88535.0,0.001]
[1764027990911,0.22589425,88537.0,88535.0,0.001]
[1764027991679,0.01129484,88536.0,88524.0,0.03396179]
[1764027992077,0.01129484,88536.0,88535.0,0.001]
[1764027992594,0.01129484,88536.0,88535.0,0.002]
[1764027992949,0.01129484,88536.0,88524.0,0.03396179]
[1764027993155,0.01129484,88536.0,88535.0,0.002]
[1764027993816,0.323,88542.0,88535.0,0.001]
[1764027994000,0.323,88545.0,88535.0,0.001]
[1764027994154,0.323,88543.0,88535.0,0.001]
[1764027994358,0.323,88545.0,88535.0,0.001]
[1764027994565,2.0,88542.0,88535.0,0.001]
[1764027994791,1.76025875,88542.0,88535.0,0.001]
[1764027994993,0.323,88543.0,88534.0,0.01129509]
[1764027995196,2.0,88542.0,88535.0,0.02258993]
[1764027995397,2.0,88542.0,88535.0,0.03488489]
[1764027995763,2.0,88542.0,88535.0,0.02358993]
[1764027997814,2.0,88542.0,88536.0,0.02258968]
[1764027998844,2.0,88542.0,88537.0,0.02258942]
[1764027999395,2.323,88542.0,88541.0,0.00064441]
[1764028000634,0.323,88542.0,88541.0,0.00064441]
[1764028002000,0.323,88542.0,88541.0,0.00164441]
[1764028002202,0.323,88542.0,88541.0,0.00064441]
[1764028002652,0.323,88542.0,88541.0,0.00164441]
[1764028002850,0.323,88542.0,88541.0,0.00064441]
[1764028003050,0.323,88542.0,88541.0,0.00164441]
[1764028003253,0.323,88542.0,88541.0,0.00264441]
[1764028004237,0.323,88542.0,88541.0,0.00164441]
[1764028004648,0.323,88542.0,88541.0,0.00264441]
[1764028008194,0.323,88542.0,88541.0,0.02523281]
[1764028008421,0.323,88542.0,88541.0,0.00264441]
[1764028012728,2.39658989,88542.0,88541.0,0.00264441]
[1764028012937,2.37029,88542.0,88541.0,0.00264441]
[1764028013947,2.37029,88542.0,88541.0,0.00064441]
[1764028014357,2.37029,88542.0,88541.0,0.00164441]
[1764028017948,2.37029,88542.0,88517.0,0.00010724]
[1764028017949,0.22593508,88521.0,88517.0,0.00010724]
[1764028018076,2.74661326,88518.0,88517.0,0.00010724]
[1764028018521,2.72896906,88518.0,88517.0,0.00010724]
[1764028018773,2.78612906,88518.0,88517.0,0.00010724]
[1764028019015,2.73612906,88518.0,88517.0,0.00010724]
[1764028019175,2.76508027,88518.0,88517.0,0.00010724]
[1764028020404,2.71508027,88518.0,88517.0,0.00010724]
[1764028020622,2.7966202,88518.0,88517.0,0.00010724]
[1764028021003,2.7466202,88518.0,88517.0,0.00010724]
[1764028021200,2.73610689,88518.0,88517.0,0.00010724]
[1764028021603,2.71508027,88518.0,88517.0,0.00010724]
[1764028022987,2.38212,88518.0,88517.0,0.00010724]
[1764028023196,2.60806274,88518.0,88517.0,0.00010724]
[1764028024258,2.60090274,88518.0,88517.0,0.00010724]
[1764028024526,2.60806274,88518.0,88517.0,0.00010724]
[1764028024725,2.58423274,88518.0,88517.0,0.00010724]
[1764028025126,2.60806274,88518.0,88517.0,0.00010724]
[1764028026352,2.38212,88518.0,88517.0,0.00010724]
[1764028026529,2.60806274,88518.0,88517.0,0.00010724]
[1764028027355,2.35113,88518.0,88517.0,0.00010724]
[1764028027571,2.34199,88518.0,88517.0,0.00010724]
[1764028028676,2.33483,88518.0,88517.0,0.000844]
[1764028028976,2.33016,88518.0,88517.0,0.000844]
[1764028029318,2.323,88518.0,88517.0,0.000844]
[1764028032102,0.61892719,88530.0,88517.0,0.000844]
[1764028032103,2.0,88535.0,88520.0,0.01129688]
[1764028032273,2.0,88532.0,88518.0,0.01129713]
[1764028032474,2.0,88532.0,88519.0,0.011297]
[1764028032673,0.0225898,88531.0,88519.0,0.011297]
[1764028032919,0.323,88527.0,88518.0,0.11831466]
[1764028033147,0.323,88525.0,88518.0,0.10701753]
[1764028034093,0.323,88527.0,88520.0,0.01129688]
[1764028034434,0.323,88525.0,88518.0,0.10701753]
[1764028035034,0.323,88525.0,88520.0,0.01129688]
[1764028035263,0.323,88525.0,88518.0,0.10701753]
[1764028035536,0.323,88528.0,88518.0,0.10701753]
[1764028035736,0.323,88525.0,88517.0,0.00010724]
[1764028035920,2.02834,88518.0,88517.0,0.00010724]
[1764028036257,2.37432,88518.0,88517.0,0.00010724]
[1764028037552,2.33501,88518.0,88517.0,0.00010724]
[1764028037956,0.323,88518.0,88517.0,0.000844]
[1764028041979,0.323,88525.0,88517.0,0.000844]
[1764028042190,0.323,88521.0,88517.0,0.00010724]
[1764028042383,0.00716,88527.0,88517.0,0.00010724]
[1764028042588,0.323,88523.0,88517.0,0.00010724]
[1764028042730,0.323,88521.0,88517.0,0.00010724]
[1764028043751,0.33429611,88526.0,88517.0,0.00010724]
[1764028043953,0.323,88523.0,88517.0,0.00010724]
[1764028045101,0.01129624,88525.0,88517.0,0.00010724]
[1764028045302,0.323,88523.0,88517.0,0.00010724]
[1764028047455,0.323,88527.0,88517.0,0.02270176]
[1764028047609,0.323,88524.0,88517.0,0.00010724]
[1764028048151,0.323,88524.0,88518.0,0.01129713]
[1764028048354,0.323,88524.0,88520.0,0.01129688]
[1764028048516,0.323,88524.0,88523.0,0.00055253]
[1764028048709,0.323,88536.0,88523.0,0.00055253]
[1764028048911,0.323,88531.0,88523.0,0.01129649]
[1764028049135,0.00716,88538.0,88523.0,0.01129649]
[1764028049136,2.0,88530.0,88523.0,0.01129649]
[1764028049458,2.0,88530.0,88518.0,0.22594261]
[1764028049459,0.69062304,88533.0,88508.0,0.22596736]
[1764028049688,0.01201,88524.0,88508.0,0.01129841]
[1764028049879,0.01201,88524.0,88513.0,0.0411241]
[1764028050374,0.323,88528.0,88513.0,0.0411241]
[1764028050578,0.01129598,88527.0,88513.0,0.0411241]
[1764028050951,0.01129611,88526.0,88513.0,0.0411241]
[1764028052607,0.01129688,88520.0,88513.0,0.00716]
[1764028052810,0.01129649,88523.0,88513.0,0.00716]
[1764028052811,0.01129662,88522.0,88513.0,0.00716]
[1764028053112,0.01129688,88520.0,88513.0,0.00716]
[1764028053866,0.22594238,88519.0,88509.0,0.0339686]
[1764028054104,0.01633,88518.0,88505.0,0.00716]
[1764028054876,0.01633,88518.0,88507.0,0.0339686]
[1764028055479,0.01633,88518.0,88517.0,0.00110724]
[1764028055874,0.01633,88518.0,88517.0,0.001844]
[1764028056836,0.22594238,88519.0,88517.0,0.001844]
[1764028057087,0.22594238,88519.0,88517.0,0.00110724]
[1764028057671,0.22594238,88519.0,88517.0,0.00010724]
[1764028059708,0.03931,88518.0,88517.0,0.00010724]
[1764028060309,0.0804165,88519.0,88517.0,0.00010724]
[1764028060787,0.01633,88518.0,88517.0,0.00010724]
[1764028061259,0.01633,88518.0,88517.0,0.00110724]
[1764028062677,0.01633,88518.0,88517.0,0.00360724]
[1764028063038,0.01633,88518.0,88517.0,0.004344]
[1764028066311,0.0225898,88519.0,88517.0,0.004344]
[1764028066471,0.0225898,88519.0,88517.0,0.00360724]
[1764028066668,0.323,88520.0,88517.0,0.00360724]
[1764028066986,0.0225898,88519.0,88517.0,0.00260724]
[1764028067195,0.33429637,88524.0,88517.0,0.00260724]
[1764028067196,0.323,88521.0,88517.0,0.00260724]
[1764028067397,0.0225898,88520.0,88517.0,0.00260724]
[1764028068665,0.323,88521.0,88517.0,0.00260724]
[1764028068862,2.44533753,88518.0,88517.0,0.00260724]
[1764028069160,2.50786052,88518.0,88517.0,0.00260724]
[1764028069364,2.51502052,88518.0,88517.0,0.00260724]
[1764028069573,2.53785052,88518.0,88517.0,0.00260724]
[1764028070145,2.61944814,88518.0,88517.0,0.00260724]
[1764028070322,2.61944814,88518.0,88517.0,0.00360724]
[1764028070522,2.64370146,88518.0,88517.0,0.00360724]
[1764028070692,2.64370146,88518.0,88517.0,0.00260724]
[1764028071330,2.64470146,88518.0,88517.0,0.00260724]
[1764028072016,2.59470146,88518.0,88517.0,0.00260724]
[1764028072225,2.57044814,88518.0,88517.0,0.00260724]
[1764028072428,2.62044814,88518.0,88517.0,0.00260724]
[1764028072624,2.62044814,88518.0,88517.0,0.003344]
[1764028072625,2.57044814,88518.0,88517.0,0.003344]
[1764028072825,2.6375236,88518.0,88517.0,0.003344]
[1764028073025,2.6446836,88518.0,88517.0,0.003344]
[1764028075308,2.62044814,88518.0,88517.0,0.003344]
[1764028075453,2.57044814,88518.0,88517.0,0.003344]
[1764028075640,2.62044814,88518.0,88517.0,0.003344]
[1764028081276,2.57044814,88518.0,88517.0,0.003344]
[1764028082730,2.60991577,88518.0,88517.0,0.003344]
[1764028083095,2.55991577,88518.0,88517.0,0.003344]
[1764028083323,2.60991577,88518.0,88517.0,0.003344]
[1764028083767,2.62042627,88518.0,88517.0,0.003344]
[1764028083984,2.57042627,88518.0,88517.0,0.003344]
[1764028084196,2.62042627,88518.0,88517.0,0.003344]
[1764028084325,2.59464169,88518.0,88517.0,0.003344]
[1764028084530,2.67862429,88518.0,88517.0,0.003344]
[1764028085349,2.67762429,88518.0,88517.0,0.003344]
[1764028085712,2.72962429,88518.0,88517.0,0.003344]
[1764028086381,2.64564169,88518.0,88517.0,0.003344]
[1764028087678,2.89344169,88518.0,88517.0,0.003344]
[1764028088094,2.94344169,88518.0,88517.0,0.003344]
[1764028089345,3.058663,88518.0,88517.0,0.003344]
[1764028089544,2.94344169,88518.0,88517.0,0.003344]
[1764028091504,2.97367448,88518.0,88517.0,0.003344]
[1764028091924,3.00765708,88518.0,88517.0,0.003344]
[1764028094423,2.97742429,88518.0,88517.0,0.003344]
[1764028094906,2.92742429,88518.0,88517.0,0.003344]
[1764028096650,0.22598614,88501.0,88500.0,11.00025]
[1764028096895,2.7449003,88501.0,88500.0,10.4886762]
[1764028097102,2.71947168,88501.0,88500.0,10.4886762]
[1764028097305,2.77663168,88501.0,88500.0,10.4886762]
[1764028097525,2.81004442,88501.0,88500.0,10.4886762]
[1764028097738,2.86004442,88501.0,88500.0,10.4886762]
[1764028097922,2.86104442,88501.0,88500.0,10.4886762]
[1764028098962,2.97626573,88501.0,88500.0,10.4886762]
[1764028099388,3.02626573,88501.0,88500.0,10.4886762]
[1764028099597,3.06125419,88501.0,88500.0,10.4886762]
[1764028099810,2.94603288,88501.0,88500.0,10.4886762]
[1764028101550,2.89603288,88501.0,88500.0,10.4886762]
[1764028101756,2.94603288,88501.0,88500.0,10.4886762]
[1764028101967,2.91204442,88501.0,88500.0,10.4886762]
[1764028102158,2.91204442,88501.0,88500.0,10.48919824]
[1764028102431,3.10984442,88501.0,88500.0,10.48919824]
[1764028103470,3.23747631,88501.0,88500.0,10.48919824]
[1764028104444,3.10984442,88501.0,88500.0,10.48919824]
[1764028105574,3.10984442,88501.0,88500.0,10.45522339]
[1764028105778,3.09383449,88501.0,88500.0,10.42124854]
[1764028105980,3.19383449,88501.0,88500.0,10.38727369]
[1764028106537,3.14383449,88501.0,88500.0,10.38727369]
[1764028106747,3.22409184,88501.0,88500.0,10.38727369]
[1764028107533,3.19382919,88501.0,88500.0,10.38727369]
[1764028107734,3.14382919,88501.0,88500.0,10.38727369]
[1764028108194,3.19382919,88501.0,88500.0,10.38727369]
[1764028108358,3.17408647,88501.0,88500.0,10.38727369]
[1764028108692,3.22408647,88501.0,88500.0,10.38727369]
[1764028108923,3.19382919,88501.0,88500.0,10.38727369]
[1764028109128,3.27192625,88501.0,88500.0,10.38727369]
[1764028110585,3.17192625,88501.0,88500.0,10.38727369]
[1764028110785,3.22192625,88501.0,88500.0,10.38727369]
[1764028112187,3.27192625,88501.0,88500.0,9.86476827]
[1764028112822,3.19382919,88501.0,88500.0,9.86476827]
[1764028113023,3.14382919,88501.0,88500.0,9.86476827]
[1764028113378,3.19382919,88501.0,88500.0,9.86476827]
[1764028114099,3.14382919,88501.0,88500.0,9.83079152]
[1764028114295,3.14382919,88501.0,88500.0,9.79681477]
[1764028114530,3.19382919,88501.0,88500.0,9.76283802]
[1764028114733,3.19382919,88501.0,88500.0,9.72886127]
[1764028114901,3.14382919,88501.0,88500.0,9.72886127]
[1764028116114,3.25576919,88501.0,88500.0,9.72886127]
[1764028116337,3.26292919,88501.0,88500.0,9.72886127]
[1764028116538,3.31292919,88501.0,88500.0,9.72886127]
[1764028116871,3.26292919,88501.0,88500.0,9.72886127]
[1764028117906,3.3781505,88501.0,88500.0,9.72886127]
[1764028118404,3.39416043,88501.0,88500.0,9.72886127]
[1764028121092,3.27893912,88501.0,88500.0,9.72886127]
[1764028121325,3.30919671,88501.0,88500.0,9.72886127]
[1764028121865,3.08293671,88501.0,88500.0,9.72886127]
[1764028122067,3.10983912,88501.0,88500.0,9.72886127]
[1764028123387,3.15983912,88501.0,88500.0,9.72886127]
[1764028124137,3.10983912,88501.0,88500.0,9.72886127]
[1764028124306,3.15983912,88501.0,88500.0,9.72886127]
[1764028124710,3.2001391,88501.0,88500.0,9.72886127]
[1764028124890,3.15983912,88501.0,88500.0,9.72886127]
[1764028125288,3.10983912,88501.0,88500.0,9.72886127]
[1764028125526,2.93048074,88501.0,88500.0,9.72886127]
[1764028126118,3.04958074,88501.0,88500.0,9.72886127]
[1764028126331,2.93048074,88501.0,88500.0,9.72886127]
[1764028127172,2.88048074,88501.0,88500.0,9.72886127]
[1764028127509,2.93048074,88501.0,88500.0,9.72886127]
[1764028127711,2.94431081,88501.0,88500.0,9.72886127]
[1764028128143,2.99431081,88501.0,88500.0,9.72886127]
[1764028128552,2.98048074,88501.0,88500.0,9.72886127]
[1764028130180,2.93048074,88501.0,88500.0,9.72886127]
[1764028131987,2.98048074,88501.0,88500.0,9.72886127]
[1764028132180,2.93048074,88501.0,88500.0,9.72886127]
[1764028132303,2.96447312,88501.0,88500.0,9.72886127]
[1764028132506,3.01447312,88501.0,88500.0,9.72886127]
[1764028132722,2.96447312,88501.0,88500.0,9.72886127]
[1764028133332,3.0143191,88501.0,88500.0,9.72886127]
[1764028133584,2.9643191,88501.0,88500.0,9.72886127]
[1764028134030,2.9869691,88501.0,88500.0,9.72886127]
[1764028134226,2.9643191,88501.0,88500.0,9.72886127]
[1764028134431,2.96784536,88501.0,88500.0,9.72886127]
[1764028135391,3.1866715,88501.0,88500.0,9.72886127]
[1764028135725,3.1438315,88501.0,88500.0,9.72886127]
[1764028136330,3.2629315,88501.0,88500.0,9.72886127]
[1764028138654,3.3129315,88501.0,88500.0,9.72886127]
[1764028139152,3.2629315,88501.0,88500.0,9.72886127]
[1764028139719,3.2557715,88501.0,88500.0,9.72886127]
[1764028139914,3.2629315,88501.0,88500.0,9.72886127]
[1764028140779,3.0866715,88501.0,88500.0,9.72886127]
[1764028140942,3.0938315,88501.0,88500.0,9.72886127]
[1764028141140,3.20905281,88501.0,88500.0,9.72886127]
[1764028141405,3.25905281,88501.0,88500.0,9.72886127]
[1764028142155,3.1438315,88501.0,88500.0,9.72886127]
[1764028143249,3.1938315,88501.0,88500.0,9.72886127]
[1764028144077,3.1438315,88501.0,88500.0,9.72886127]
[1764028145098,3.1938315,88501.0,88500.0,9.72886127]
[1764028145751,3.1438315,88501.0,88500.0,9.72886127]
[1764028145931,3.1938315,88501.0,88500.0,9.72886127]
[1764028146112,3.0938315,88501.0,88500.0,9.72886127]
[1764028146323,3.42815281,88501.0,88500.0,9.72886127]
[1764028146680,3.30905281,88501.0,88500.0,9.72886127]
[1764028147027,3.25905281,88501.0,88500.0,9.72886127]
[1764028147229,3.30905281,88501.0,88500.0,9.72886127]
[1764028147427,3.1438315,88501.0,88500.0,9.72886127]
[1764028147826,3.1366715,88501.0,88500.0,9.72886127]
[1764028148191,3.1938315,88501.0,88500.0,9.72886127]
[1764028148326,3.25462652,88501.0,88500.0,9.72886127]
[1764028150199,3.31984783,88501.0,88500.0,9.72886127]
[1764028150432,3.25905281,88501.0,88500.0,9.72886127]
[1764028150603,3.30905281,88501.0,88500.0,9.72886127]
[1764028150996,3.36983489,88501.0,88500.0,9.72886127]
[1764028151198,3.31983489,88501.0,88500.0,9.72886127]
[1764028151398,3.30905281,88501.0,88500.0,9.72886127]
[1764028151602,3.1938315,88501.0,88500.0,9.72886127]
[1764028154016,3.1438315,88501.0,88500.0,9.72886127]
[1764028154217,3.1938315,88501.0,88500.0,9.72886127]
[1764028154802,3.1438315,88501.0,88500.0,9.72886127]
[1764028155008,3.1938315,88501.0,88500.0,9.72886127]
[1764028155546,3.30905281,88501.0,88500.0,9.72886127]
[1764028157445,3.1938315,88501.0,88500.0,9.72886127]
[1764028159936,3.02414851,88501.0,88500.0,9.72886127]
[1764028160160,2.99731613,88501.0,88500.0,9.72886127]
[1764028160360,3.14021169,88501.0,88500.0,9.72886127]
[1764028161490,3.10983912,88501.0,88500.0,9.72886127]
[1764028164365,3.05983912,88501.0,88500.0,9.72886127]
[1764028164571,3.14382742,88501.0,88500.0,9.72886127]
[1764028164791,3.2343479,88501.0,88500.0,9.72886127]
[1764028166228,3.1843479,88501.0,88500.0,9.72886127]
[1764028166534,3.1343479,88501.0,88500.0,9.72886127]
[1764028166676,3.13666742,88501.0,88500.0,9.72886127]
[1764028166876,3.14382742,88501.0,88500.0,9.72886127]
[1764028167319,3.19382742,88501.0,88500.0,9.72886127]
[1764028169844,2.87082742,88501.0,88500.0,9.72886127]
[1764028171568,2.82082742,88501.0,88500.0,9.72886127]
[1764028171959,3.14382742,88501.0,88500.0,9.72886127]
[1764028172496,3.13666742,88501.0,88500.0,9.72886127]
[1764028172663,3.14382742,88501.0,88500.0,9.72886127]
[1764028173183,3.09382742,88501.0,88500.0,9.72886127]
[1764028173333,3.14382742,88501.0,88500.0,9.72886127]
[1764028174332,3.19382742,88501.0,88500.0,9.72886127]
[1764028175193,3.02937443,88501.0,88500.0,9.72886127]
[1764028175490,2.34117339,88501.0,88500.0,9.72886127]
[1764028175665,2.03353713,88501.0,88500.0,9.72886127]
[1764028175883,2.03018663,88501.0,88500.0,9.72886127]
[1764028176075,2.35318663,88501.0,88500.0,9.72886127]
[1764028176276,2.36272024,88501.0,88500.0,9.72886127]
[1764028176483,2.02202663,88501.0,88500.0,9.72886127]
[1764028176652,2.00916,88501.0,88500.0,9.72886127]
[1764028176846,2.33216,88501.0,88500.0,9.72886127]
[1764028177093,2.33116,88501.0,88500.0,9.72886127]
[1764028177486,2.33216,88501.0,88500.0,9.72886127]
[1764028177750,2.33116,88501.0,88500.0,9.72886127]
[1764028178103,2.55614614,88501.0,88500.0,9.72886127]
[1764028178284,2.55714614,88501.0,88500.0,9.72886127]
[1764028178492,2.33116,88501.0,88500.0,9.72886127]
[1764028180279,2.37729,88501.0,88500.0,9.72886127]
[1764028183968,2.37013,88501.0,88500.0,9.72886127]
[1764028184144,2.37729,88501.0,88500.0,9.72886127]
[1764028191501,2.37715448,88501.0,88500.0,9.72886127]
[1764028192745,2.34884448,88501.0,88500.0,9.72886127]
[1764028192956,2.33102448,88501.0,88500.0,9.72886127]
[1764028193588,2.34930448,88501.0,88500.0,9.72886127]
[1764028194680,2.37585448,88501.0,88500.0,9.72886127]
[1764028198807,2.43837747,88501.0,88500.0,9.72886127]
[1764028199785,2.34930448,88501.0,88500.0,9.72886127]
[1764028200571,2.37585448,88501.0,88500.0,9.72886127]
[1764028200951,2.43837747,88501.0,88500.0,9.67206127]
[1764028201075,2.46279566,88501.0,88500.0,9.67206127]
[1764028201282,2.52820222,88501.0,88500.0,9.67206127]
[1764028201486,2.57820222,88501.0,88500.0,9.67206127]
[1764028201828,2.54321222,88501.0,88500.0,9.67206127]
[1764028202179,2.54421222,88501.0,88500.0,9.67206127]
[1764028202593,2.59421222,88501.0,88500.0,9.67206127]
[1764028202823,2.54421222,88501.0,88500.0,9.67206127]
[1764028203063,2.54521222,88501.0,88500.0,9.67206127]
[1764028206194,2.59521222,88501.0,88500.0,9.67206127]
[1764028206396,2.54521222,88501.0,88500.0,9.67206127]
[1764028207386,2.59521222,88501.0,88500.0,9.67206127]
[1764028208209,2.49521222,88501.0,88500.0,9.67206127]
[1764028208387,2.54521222,88501.0,88500.0,9.67206127]
[1764028213222,2.48802638,88501.0,88500.0,9.67206127]
[1764028213470,2.49518638,88501.0,88500.0,9.67206127]
[1764028213877,2.48802638,88501.0,88500.0,9.67206127]
[1764028214082,2.49518638,88501.0,88500.0,9.67206127]
[1764028215068,2.44440566,88501.0,88500.0,9.67206127]
[1764028215664,2.47010566,88501.0,88500.0,9.67206127]
[1764028218297,2.05172267,88501.0,88500.0,9.67206127]
[1764028218499,2.00902448,88501.0,88500.0,9.67206127]
[1764028218719,2.33202448,88501.0,88500.0,9.67206127]
[1764028219188,2.33102448,88501.0,88500.0,9.67206127]
[1764028219391,2.33002448,88501.0,88500.0,9.67206127]
[1764028220607,1.98002448,88501.0,88500.0,9.67206127]
[1764028222387,2.02286448,88501.0,88500.0,9.67206127]
[1764028222516,2.04484716,88501.0,88500.0,9.67206127]
[1764028222716,2.09484716,88501.0,88500.0,9.67206127]
[1764028226396,2.04484716,88501.0,88500.0,9.67206127]
[1764028226608,2.09484716,88501.0,88500.0,9.67206127]
[1764028228360,2.04484716,88501.0,88500.0,9.67206127]
[1764028228569,2.09484716,88501.0,88500.0,9.67206127]
[1764028230358,2.0948561,88501.0,88500.0,9.67206127]
[1764028232078,2.0448561,88501.0,88500.0,9.67206127]
[1764028232518,2.0948561,88501.0,88500.0,9.67206127]